[Event "*** Titled Tuesday Blitz"]
[Site "Chess.com"]
[Date "2020.04.28"]
[Round "4"]
[White "NewBornNow"]
[Black "Piotrek1979"]
[Result "0-1"]
[WhiteElo "2615"]
[BlackElo "2412"]
[TimeControl "180+1"]
[EndTime "10:40:07 PDT"]
[Termination "Piotrek1979 won by resignation"]

1. e4 {[%clk 0:03:00.9]} 1... c6 {[%clk 0:02:58.8]} 2. d4 {[%clk 0:02:58.5]}
2... d5 {[%clk 0:02:59.7]} 3. e5 {[%clk 0:02:58.5]} 3... Bf5 {[%clk 0:02:59]} 4.
Nf3 {[%clk 0:02:58.4]} 4... e6 {[%clk 0:02:58.3]} 5. Be2 {[%clk 0:02:57.6]} 5...
Ne7 {[%clk 0:02:58.4]} 6. O-O {[%clk 0:02:57.3]} 6... Nd7 {[%clk 0:02:58.9]} 7.
Nbd2 {[%clk 0:02:56.4]} 7... h6 {[%clk 0:02:57.1]} 8. a4 {[%clk 0:02:55.9]} 8...
a5 {[%clk 0:02:56.3]} 9. Nb3 {[%clk 0:02:54.8]} 9... b6 {[%clk 0:02:56.2]} 10.
c3 {[%clk 0:02:48.6]} 10... g5 {[%clk 0:02:51.3]} 11. Ne1 {[%clk 0:02:47.3]}
11... Bg6 {[%clk 0:02:36.8]} 12. f4 {[%clk 0:02:44.5]} 12... Nf5 {[%clk
0:02:33.9]} 13. Bd3 {[%clk 0:02:21.2]} 13... gxf4 {[%clk 0:02:28.2]} 14. Bxf4
{[%clk 0:02:20.1]} 14... h5 {[%clk 0:02:28.5]} 15. Nd2 {[%clk 0:02:17.9]} 15...
Be7 {[%clk 0:02:25.2]} 16. Ndf3 {[%clk 0:02:16.9]} 16... h4 {[%clk 0:02:21.2]}
17. Nc2 {[%clk 0:02:14.9]} 17... Rg8 {[%clk 0:02:17.2]} 18. Ne3 {[%clk
0:02:09.1]} 18... Nxe3 {[%clk 0:02:10.7]} 19. Bxe3 {[%clk 0:02:08.9]} 19... Qc7
{[%clk 0:02:04.4]} 20. Rb1 {[%clk 0:01:36]} 20... c5 {[%clk 0:02:01.7]} 21. Bxg6
{[%clk 0:01:33.7]} 21... Rxg6 {[%clk 0:02:00.6]} 22. Qe1 {[%clk 0:01:28.1]}
22... h3 {[%clk 0:01:48.5]} 23. g3 {[%clk 0:01:27.1]} 23... O-O-O {[%clk
0:01:33.8]} 24. Qe2 {[%clk 0:01:15.9]} 24... Kb7 {[%clk 0:01:31.8]} 25. Kh1
{[%clk 0:01:10.4]} 25... Rdg8 {[%clk 0:01:26.4]} 26. Bf4 {[%clk 0:01:09.5]}
26... Rg4 {[%clk 0:01:21.9]} 27. b3 {[%clk 0:01:03.1]} 27... Qc6 {[%clk
0:01:20.4]} 28. Rbd1 {[%clk 0:00:51.1]} 28... Nf8 {[%clk 0:00:44.5]} 29. c4
{[%clk 0:00:44.7]} 29... dxc4 {[%clk 0:00:39.7]} 30. bxc4 {[%clk 0:00:37.2]}
30... cxd4 {[%clk 0:00:39.6]} 31. Rxd4 {[%clk 0:00:36.1]} 31... Bc5 {[%clk
0:00:38.3]} 32. Rd2 {[%clk 0:00:17.8]} 32... Ng6 {[%clk 0:00:38.1]} 33. Bh6
{[%clk 0:00:13.8]} 33... Re4 {[%clk 0:00:36.4]} 34. Qd3 {[%clk 0:00:12.9]} 34...
Nxe5 {[%clk 0:00:35.5]} 35. Nxe5 {[%clk 0:00:12.6]} 35... Rxe5+ {[%clk
0:00:35.7]} 36. Qf3 {[%clk 0:00:11.4]} 36... Qxf3+ {[%clk 0:00:35.2]} 37. Rxf3
{[%clk 0:00:11.4]} 37... Re1+ {[%clk 0:00:35.9]} 0-1

[Event "*** Titled Tuesday Blitz"]
[Site "Chess.com"]
[Date "2020.04.28"]
[Round "4"]
[White "CraiggoryC"]
[Black "kakakz"]
[Result "0-1"]
[WhiteElo "2073"]
[BlackElo "2396"]
[TimeControl "180+1"]
[EndTime "10:40:07 PDT"]
[Termination "kakakz won on time"]

1. e4 {[%clk 0:03:00.9]} 1... c5 {[%clk 0:02:59.9]} 2. Nc3 {[%clk 0:03:00.6]}
2... d6 {[%clk 0:02:59.7]} 3. f4 {[%clk 0:02:59.4]} 3... g6 {[%clk 0:02:59.8]}
4. Nf3 {[%clk 0:02:59.8]} 4... Bg7 {[%clk 0:03:00.3]} 5. Bb5+ {[%clk 0:03:00.3]}
5... Bd7 {[%clk 0:03:00.5]} 6. Bxd7+ {[%clk 0:02:58.1]} 6... Qxd7 {[%clk
0:02:57.8]} 7. O-O {[%clk 0:02:58.4]} 7... Nc6 {[%clk 0:02:58.3]} 8. d3 {[%clk
0:02:55.1]} 8... e6 {[%clk 0:02:58.2]} 9. Qe1 {[%clk 0:02:54.5]} 9... Nge7
{[%clk 0:02:58.4]} 10. f5 {[%clk 0:02:39]} 10... gxf5 {[%clk 0:02:57.7]} 11. Qg3
{[%clk 0:02:28.3]} 11... Rg8 {[%clk 0:02:49.5]} 12. Qh3 {[%clk 0:02:16.9]} 12...
O-O-O {[%clk 0:02:47.4]} 13. Nh4 {[%clk 0:01:52.9]} 13... Nd4 {[%clk 0:02:37.9]}
14. Rf2 {[%clk 0:01:41.6]} 14... Be5 {[%clk 0:02:01.4]} 15. Be3 {[%clk
0:01:13.5]} 15... Rg7 {[%clk 0:01:52.2]} 16. Raf1 {[%clk 0:01:05.7]} 16... Rdg8
{[%clk 0:01:51.7]} 17. exf5 {[%clk 0:00:45.9]} 17... Nexf5 {[%clk 0:01:50.7]}
18. Nxf5 {[%clk 0:00:45]} 18... Nxf5 {[%clk 0:01:50.2]} 19. Nd1 {[%clk
0:00:32.8]} 19... Nxe3 {[%clk 0:01:40.6]} 20. Nxe3 {[%clk 0:00:31.9]} 20... Bxb2
{[%clk 0:01:40.9]} 21. Kh1 {[%clk 0:00:20.1]} 21... Bd4 {[%clk 0:01:41]} 22. Re2
{[%clk 0:00:11.3]} 22... Qc6 {[%clk 0:01:40.6]} 23. Qf3 {[%clk 0:00:08.5]} 23...
Qxf3 {[%clk 0:01:39.8]} 24. Rxf3 {[%clk 0:00:09]} 24... Bxe3 {[%clk 0:01:38.6]}
25. Rfxe3 {[%clk 0:00:08]} 25... Kd7 {[%clk 0:01:37.4]} 26. c4 {[%clk
0:00:07.2]} 26... Rg4 {[%clk 0:01:26.7]} 27. g3 {[%clk 0:00:05.6]} 27... R8g6
{[%clk 0:01:25]} 28. Rb2 {[%clk 0:00:04.2]} 28... b6 {[%clk 0:01:24.8]} 29. a4
{[%clk 0:00:03.9]} 29... Rf6 {[%clk 0:01:17.5]} 30. a5 {[%clk 0:00:03.1]} 30...
Kc6 {[%clk 0:01:02.6]} 31. axb6 {[%clk 0:00:02.3]} 31... axb6 {[%clk 0:01:03.5]}
32. Kg2 {[%clk 0:00:02.5]} 32... Rd4 {[%clk 0:00:57.4]} 33. Ra2 {[%clk
0:00:02.3]} 33... Kb7 {[%clk 0:00:42.1]} 0-1

[Event "*** Titled Tuesday Blitz"]
[Site "Chess.com"]
[Date "2020.04.28"]
[Round "4"]
[White "GmSergioBarrientos"]
[Black "gui_borba"]
[Result "0-1"]
[WhiteElo "2583"]
[BlackElo "2379"]
[TimeControl "180+1"]
[EndTime "10:40:09 PDT"]
[Termination "gui_borba won by checkmate"]

1. d4 {[%clk 0:03:00.9]} 1... Nf6 {[%clk 0:02:58.8]} 2. c4 {[%clk 0:02:59.5]}
2... e6 {[%clk 0:02:59.2]} 3. Nf3 {[%clk 0:02:59.1]} 3... c5 {[%clk 0:02:57.6]}
4. Nc3 {[%clk 0:02:56.3]} 4... cxd4 {[%clk 0:02:54.7]} 5. Nxd4 {[%clk
0:02:56.1]} 5... Qc7 {[%clk 0:02:54.6]} 6. g3 {[%clk 0:02:51.5]} 6... Qxc4
{[%clk 0:02:51.5]} 7. Bg2 {[%clk 0:02:49.9]} 7... a6 {[%clk 0:02:49.1]} 8. O-O
{[%clk 0:02:49.4]} 8... Nc6 {[%clk 0:02:47.5]} 9. Nb3 {[%clk 0:02:49.1]} 9... d5
{[%clk 0:02:41.4]} 10. Bg5 {[%clk 0:02:48.5]} 10... Be7 {[%clk 0:02:40.4]} 11.
Rc1 {[%clk 0:02:47.8]} 11... Qb4 {[%clk 0:02:35.7]} 12. a3 {[%clk 0:02:24.6]}
12... Qg4 {[%clk 0:02:32.2]} 13. Qd2 {[%clk 0:02:19]} 13... O-O {[%clk
0:02:27.2]} 14. h3 {[%clk 0:02:15]} 14... Qf5 {[%clk 0:02:15.5]} 15. Rfe1 {[%clk
0:02:08]} 15... h6 {[%clk 0:02:08.9]} 16. Be3 {[%clk 0:02:04.2]} 16... Rd8
{[%clk 0:02:03.4]} 17. Na4 {[%clk 0:01:53.8]} 17... d4 {[%clk 0:01:41.7]} 18.
Bxd4 {[%clk 0:01:32.1]} 18... e5 {[%clk 0:01:37.2]} 19. Nb6 {[%clk 0:01:18.6]}
19... Rb8 {[%clk 0:01:10.2]} 20. Bxc6 {[%clk 0:01:04.9]} 20... bxc6 {[%clk
0:01:08.1]} 21. Qe3 {[%clk 0:01:05.2]} 21... exd4 {[%clk 0:00:23]} 22. Qxe7
{[%clk 0:01:02.7]} 22... Re8 {[%clk 0:00:23.3]} 23. Qc7 {[%clk 0:01:01.1]} 23...
Rb7 {[%clk 0:00:23.3]} 24. Qxc6 {[%clk 0:00:56.2]} 24... Qxh3 {[%clk 0:00:22.5]}
25. Nxc8 {[%clk 0:00:51.8]} 25... Rxb3 {[%clk 0:00:20.4]} 26. Nd6 {[%clk
0:00:50]} 26... Re6 {[%clk 0:00:18.3]} 27. Qa8+ {[%clk 0:00:39.6]} 27... Kh7
{[%clk 0:00:18.1]} 28. Nxf7 {[%clk 0:00:36.5]} 28... Re4 {[%clk 0:00:13.3]} 29.
Qc8 {[%clk 0:00:16.8]} 29... Rxg3+ {[%clk 0:00:12.1]} 30. fxg3 {[%clk
0:00:15.9]} 30... Qxg3+ {[%clk 0:00:13]} 31. Kf1 {[%clk 0:00:15.5]} 31... Rf4#
{[%clk 0:00:13.1]} 0-1

[Event "*** Titled Tuesday Blitz"]
[Site "Chess.com"]
[Date "2020.04.28"]
[Round "4"]
[White "agus_k"]
[Black "KaterinaMiroshnik"]
[Result "1-0"]
[WhiteElo "2595"]
[BlackElo "2396"]
[TimeControl "180+1"]
[EndTime "10:40:09 PDT"]
[Termination "agus_k won by checkmate"]

1. e4 {[%clk 0:03:00.9]} 1... e6 {[%clk 0:03:00.3]} 2. d4 {[%clk 0:02:58.9]}
2... d5 {[%clk 0:03:00.6]} 3. Nc3 {[%clk 0:02:57.2]} 3... Nf6 {[%clk 0:03:01]}
4. f3 {[%clk 0:02:54.7]} 4... Bb4 {[%clk 0:02:58.8]} 5. Bd3 {[%clk 0:02:39.5]}
5... c5 {[%clk 0:02:57]} 6. a3 {[%clk 0:02:33.9]} 6... Bxc3+ {[%clk 0:02:54.9]}
7. bxc3 {[%clk 0:02:34.2]} 7... c4 {[%clk 0:02:55.3]} 8. Bf1 {[%clk 0:02:30.9]}
8... dxe4 {[%clk 0:02:55]} 9. fxe4 {[%clk 0:02:29.6]} 9... Qc7 {[%clk
0:02:28.2]} 10. e5 {[%clk 0:02:24.7]} 10... Nd5 {[%clk 0:02:27.4]} 11. Bd2
{[%clk 0:02:20.3]} 11... Nd7 {[%clk 0:02:26.6]} 12. Qg4 {[%clk 0:02:18.9]} 12...
g6 {[%clk 0:02:20.1]} 13. Nf3 {[%clk 0:02:15.6]} 13... h5 {[%clk 0:02:15.8]} 14.
Qh4 {[%clk 0:02:07.6]} 14... b5 {[%clk 0:02:12.1]} 15. Be2 {[%clk 0:02:04.1]}
15... Bb7 {[%clk 0:02:09.1]} 16. O-O {[%clk 0:01:58.7]} 16... Qd8 {[%clk
0:02:05.9]} 17. Ng5 {[%clk 0:01:54.4]} 17... Rf8 {[%clk 0:01:55.6]} 18. Qf2
{[%clk 0:01:48.3]} 18... Nxc3 {[%clk 0:01:40.9]} 19. Bf3 {[%clk 0:01:39.3]}
19... Nd5 {[%clk 0:01:03.1]} 20. Ne4 {[%clk 0:01:33.8]} 20... Qb6 {[%clk
0:00:51]} 21. Bg5 {[%clk 0:01:32.2]} 21... Nb8 {[%clk 0:00:45.7]} 22. Nd6+
{[%clk 0:01:26.9]} 22... Kd7 {[%clk 0:00:45.1]} 23. Rab1 {[%clk 0:01:14.1]}
23... Bc6 {[%clk 0:00:43.4]} 24. Nxc4 {[%clk 0:01:12.2]} 24... Qc7 {[%clk
0:00:42.7]} 25. Nd6 {[%clk 0:01:08.5]} 25... Na6 {[%clk 0:00:40.5]} 26. Nxb5
{[%clk 0:01:04.2]} 26... Bxb5 {[%clk 0:00:38.8]} 27. Rxb5 {[%clk 0:01:03.3]}
27... Qc6 {[%clk 0:00:38.6]} 28. Rfb1 {[%clk 0:00:56.9]} 28... Nac7 {[%clk
0:00:37.6]} 29. Rb7 {[%clk 0:00:51.1]} 29... Rac8 {[%clk 0:00:32.4]} 30. Qf1
{[%clk 0:00:42.5]} 30... Qxc2 {[%clk 0:00:27.1]} 31. Rc1 {[%clk 0:00:21.3]}
31... Qa4 {[%clk 0:00:26.9]} 32. Bxd5 {[%clk 0:00:16]} 32... exd5 {[%clk
0:00:25.5]} 33. Qf6 {[%clk 0:00:16.9]} 33... Qxa3 {[%clk 0:00:18.3]} 34. Qc6#
{[%clk 0:00:14.8]} 1-0

[Event "*** Titled Tuesday Blitz"]
[Site "Chess.com"]
[Date "2020.04.28"]
[Round "4"]
[White "Alexander_Moskalenko"]
[Black "PIwan"]
[Result "1-0"]
[WhiteElo "2873"]
[BlackElo "2542"]
[TimeControl "180+1"]
[EndTime "10:40:11 PDT"]
[Termination "Alexander_Moskalenko won on time"]

1. d4 {[%clk 0:03:00.9]} 1... e6 {[%clk 0:03:00.9]} 2. c4 {[%clk 0:02:57.3]}
2... f5 {[%clk 0:03:01]} 3. g3 {[%clk 0:02:56.5]} 3... Nf6 {[%clk 0:03:01.2]} 4.
Bg2 {[%clk 0:02:57.4]} 4... d5 {[%clk 0:03:01.8]} 5. Nf3 {[%clk 0:02:58.3]} 5...
c6 {[%clk 0:03:02.3]} 6. Nc3 {[%clk 0:02:58.2]} 6... Bd6 {[%clk 0:03:02.4]} 7.
Qc2 {[%clk 0:02:58.8]} 7... O-O {[%clk 0:03:02.2]} 8. Rb1 {[%clk 0:02:58.3]}
8... Qe7 {[%clk 0:02:58.5]} 9. O-O {[%clk 0:02:51.6]} 9... Ne4 {[%clk
0:02:46.1]} 10. b4 {[%clk 0:02:39.2]} 10... Bxb4 {[%clk 0:02:24.6]} 11. Nxe4
{[%clk 0:02:39]} 11... fxe4 {[%clk 0:02:22.9]} 12. Bg5 {[%clk 0:02:39.5]} 12...
Qd6 {[%clk 0:01:56.2]} 13. c5 {[%clk 0:02:37.9]} 13... Qc7 {[%clk 0:01:54.4]}
14. Rxb4 {[%clk 0:02:37.5]} 14... exf3 {[%clk 0:01:54.6]} 15. exf3 {[%clk
0:02:27.5]} 15... Na6 {[%clk 0:01:53.3]} 16. Rb3 {[%clk 0:02:27.2]} 16... e5
{[%clk 0:01:53.3]} 17. dxe5 {[%clk 0:02:17.9]} 17... Qxe5 {[%clk 0:01:54.2]} 18.
Bd2 {[%clk 0:02:18.3]} 18... Bf5 {[%clk 0:01:45.5]} 19. Qc1 {[%clk 0:02:16.1]}
19... Rf7 {[%clk 0:01:36.8]} 20. Bf4 {[%clk 0:02:10.8]} 20... Qd4 {[%clk
0:01:29.9]} 21. Bd6 {[%clk 0:02:10.7]} 21... Re8 {[%clk 0:01:24.7]} 22. Rd1
{[%clk 0:02:09.9]} 22... Qc4 {[%clk 0:01:09.5]} 23. Re3 {[%clk 0:01:58.5]} 23...
Rd8 {[%clk 0:00:50.1]} 24. Qxc4 {[%clk 0:01:51.9]} 24... dxc4 {[%clk 0:00:51]}
25. Bf1 {[%clk 0:01:52.8]} 25... Bd3 {[%clk 0:00:40.9]} 26. Bxd3 {[%clk
0:01:52.5]} 26... cxd3 {[%clk 0:00:41.8]} 27. Rdxd3 {[%clk 0:01:53.1]} 27... Nb4
{[%clk 0:00:37.9]} 28. Ra3 {[%clk 0:01:48.7]} 28... Nd5 {[%clk 0:00:37.6]} 29.
Re1 {[%clk 0:01:39.7]} 29... b5 {[%clk 0:00:34.4]} 30. cxb6 {[%clk 0:01:38]}
30... axb6 {[%clk 0:00:28.9]} 31. Be5 {[%clk 0:01:34.9]} 31... Nb4 {[%clk
0:00:22.1]} 32. Rb1 {[%clk 0:01:19]} 32... Nd3 {[%clk 0:00:19.4]} 33. f4 {[%clk
0:01:15.1]} 33... b5 {[%clk 0:00:12.4]} 34. Rc3 {[%clk 0:01:14.3]} 34... h6
{[%clk 0:00:06.2]} 35. Rxc6 {[%clk 0:01:12.7]} 35... Nxe5 {[%clk 0:00:06.8]} 36.
fxe5 {[%clk 0:01:13.6]} 36... Rd2 {[%clk 0:00:07.3]} 37. Rf1 {[%clk 0:01:04.5]}
37... Rxa2 {[%clk 0:00:06.1]} 38. Rb6 {[%clk 0:01:04.8]} 38... Rb2 {[%clk
0:00:04.7]} 39. f4 {[%clk 0:01:05]} 39... Rd7 {[%clk 0:00:04.5]} 40. Rf2 {[%clk
0:01:04.8]} 40... Rb1+ {[%clk 0:00:02.3]} 41. Kg2 {[%clk 0:01:05.1]} 41... b4
{[%clk 0:00:03.2]} 42. e6 {[%clk 0:01:04.4]} 42... Re7 {[%clk 0:00:02.6]} 43. f5
{[%clk 0:01:04.2]} 43... Kh7 {[%clk 0:00:02.7]} 44. g4 {[%clk 0:01:04.5]} 44...
b3 {[%clk 0:00:02.8]} 45. h3 {[%clk 0:01:01.5]} 1-0

[Event "*** Titled Tuesday Blitz"]
[Site "Chess.com"]
[Date "2020.04.28"]
[Round "4"]
[White "druskacik"]
[Black "Andrii_Prydun"]
[Result "1-0"]
[WhiteElo "2545"]
[BlackElo "2339"]
[TimeControl "180+1"]
[EndTime "10:40:11 PDT"]
[Termination "druskacik won on time"]

1. e4 {[%clk 0:03:00.9]} 1... d5 {[%clk 0:02:49.1]} 2. exd5 {[%clk 0:03:00.3]}
2... Qxd5 {[%clk 0:02:50]} 3. Nc3 {[%clk 0:03:01.2]} 3... Qd6 {[%clk 0:02:50]}
4. d4 {[%clk 0:03:01]} 4... c6 {[%clk 0:02:50.2]} 5. Nf3 {[%clk 0:03:01.5]} 5...
Bg4 {[%clk 0:02:49.9]} 6. Be2 {[%clk 0:02:44.1]} 6... Nd7 {[%clk 0:02:44.3]} 7.
h3 {[%clk 0:02:44.2]} 7... Bh5 {[%clk 0:02:42.4]} 8. O-O {[%clk 0:02:42.8]} 8...
e6 {[%clk 0:02:41.6]} 9. Ne4 {[%clk 0:02:38.5]} 9... Qb4 {[%clk 0:02:35.3]} 10.
c3 {[%clk 0:02:37]} 10... Qb6 {[%clk 0:02:34.9]} 11. a4 {[%clk 0:02:30.8]} 11...
Ngf6 {[%clk 0:02:32.3]} 12. Ng3 {[%clk 0:02:24]} 12... Bg6 {[%clk 0:02:20.8]}
13. a5 {[%clk 0:02:19.5]} 13... Qd8 {[%clk 0:02:20.9]} 14. b4 {[%clk 0:02:16.7]}
14... Be7 {[%clk 0:02:20.5]} 15. Re1 {[%clk 0:02:15.5]} 15... O-O {[%clk
0:02:20.8]} 16. Bc4 {[%clk 0:02:10.5]} 16... b6 {[%clk 0:02:15.2]} 17. Bd2
{[%clk 0:02:00.9]} 17... c5 {[%clk 0:02:14.8]} 18. dxc5 {[%clk 0:01:46.2]} 18...
bxc5 {[%clk 0:02:14.9]} 19. Qb3 {[%clk 0:01:46.4]} 19... Kh8 {[%clk 0:01:41.5]}
20. b5 {[%clk 0:01:40.9]} 20... Qc7 {[%clk 0:01:19]} 21. Red1 {[%clk 0:01:31.8]}
21... Bd6 {[%clk 0:01:18.7]} 22. Nf1 {[%clk 0:01:22.4]} 22... Bh5 {[%clk
0:01:19]} 23. g4 {[%clk 0:01:15.1]} 23... Bg6 {[%clk 0:01:18.2]} 24. Bg5 {[%clk
0:01:08.3]} 24... Be4 {[%clk 0:01:17.2]} 25. Be2 {[%clk 0:01:04.2]} 25... Rab8
{[%clk 0:01:07]} 26. c4 {[%clk 0:01:03.9]} 26... a6 {[%clk 0:00:46.5]} 27. b6
{[%clk 0:01:00.6]} 27... Qc6 {[%clk 0:00:46.6]} 28. Qe3 {[%clk 0:00:58.4]} 28...
Ne5 {[%clk 0:00:41.5]} 29. Rxd6 {[%clk 0:00:27.1]} 29... Qxd6 {[%clk 0:00:29.2]}
30. Bxf6 {[%clk 0:00:27.1]} 30... Nxf3+ {[%clk 0:00:02.2]} 31. Bxf3 {[%clk
0:00:27.3]} 1-0

[Event "*** Titled Tuesday Blitz"]
[Site "Chess.com"]
[Date "2020.04.28"]
[Round "4"]
[White "praveenb2002"]
[Black "OparinGrigoriy"]
[Result "0-1"]
[WhiteElo "2714"]
[BlackElo "2918"]
[TimeControl "180+1"]
[EndTime "10:40:12 PDT"]
[Termination "OparinGrigoriy won by checkmate"]

1. d4 {[%clk 0:03:00.9]} 1... Nf6 {[%clk 0:02:59.4]} 2. c4 {[%clk 0:03:01.1]}
2... e6 {[%clk 0:03:00.3]} 3. Nc3 {[%clk 0:02:59.5]} 3... Bb4 {[%clk 0:03:00.7]}
4. f3 {[%clk 0:02:58.9]} 4... d5 {[%clk 0:02:57.5]} 5. a3 {[%clk 0:02:56.2]}
5... Be7 {[%clk 0:02:56.8]} 6. e4 {[%clk 0:02:53.3]} 6... dxe4 {[%clk
0:02:57.7]} 7. fxe4 {[%clk 0:02:54.1]} 7... c5 {[%clk 0:02:58.3]} 8. d5 {[%clk
0:02:49.9]} 8... exd5 {[%clk 0:02:59.2]} 9. exd5 {[%clk 0:02:50.2]} 9... O-O
{[%clk 0:02:59.3]} 10. Be2 {[%clk 0:02:44.7]} 10... Bd6 {[%clk 0:02:58.3]} 11.
Nf3 {[%clk 0:02:40.6]} 11... Bg4 {[%clk 0:02:58.4]} 12. O-O {[%clk 0:02:40.2]}
12... Nbd7 {[%clk 0:02:58.7]} 13. h3 {[%clk 0:02:26.1]} 13... Bxf3 {[%clk
0:02:57.1]} 14. Bxf3 {[%clk 0:02:26.7]} 14... Re8 {[%clk 0:02:57.7]} 15. Bg5
{[%clk 0:02:20.1]} 15... h6 {[%clk 0:02:57.5]} 16. Bh4 {[%clk 0:02:18.3]} 16...
Qb6 {[%clk 0:02:45.7]} 17. Qc2 {[%clk 0:02:07.8]} 17... Re3 {[%clk 0:02:40.6]}
18. Rae1 {[%clk 0:01:48.4]} 18... Rae8 {[%clk 0:02:39.6]} 19. Rxe3 {[%clk
0:01:47.4]} 19... Rxe3 {[%clk 0:02:40.5]} 20. Re1 {[%clk 0:01:47.3]} 20... Rxe1+
{[%clk 0:02:37.8]} 21. Bxe1 {[%clk 0:01:48.2]} 21... Be5 {[%clk 0:02:37.2]} 22.
Bf2 {[%clk 0:01:37.7]} 22... Bd4 {[%clk 0:02:35.3]} 23. Kf1 {[%clk 0:01:28.2]}
23... Bxf2 {[%clk 0:02:33.9]} 24. Kxf2 {[%clk 0:01:25.2]} 24... Qd6 {[%clk
0:02:33.5]} 25. Qd2 {[%clk 0:01:19.6]} 25... a6 {[%clk 0:02:28.6]} 26. Qe3
{[%clk 0:01:10.8]} 26... Ne5 {[%clk 0:02:27]} 27. Be2 {[%clk 0:01:10.2]} 27...
b6 {[%clk 0:02:21.4]} 28. Nb1 {[%clk 0:01:00.7]} 28... Kh7 {[%clk 0:02:15]} 29.
Nd2 {[%clk 0:01:00.9]} 29... g6 {[%clk 0:02:15.5]} 30. b3 {[%clk 0:00:57.9]}
30... Kg7 {[%clk 0:02:13.8]} 31. Kg1 {[%clk 0:00:54.2]} 31... h5 {[%clk
0:02:11.2]} 32. Qc3 {[%clk 0:00:53]} 32... Ned7 {[%clk 0:02:07.6]} 33. Ne4
{[%clk 0:00:49.5]} 33... Qf4 {[%clk 0:02:07.7]} 34. Nxf6 {[%clk 0:00:35.1]}
34... Qxf6 {[%clk 0:02:07.7]} 35. Qxf6+ {[%clk 0:00:29.5]} 35... Kxf6 {[%clk
0:02:08.6]} 36. Kf2 {[%clk 0:00:30]} 36... Ke5 {[%clk 0:02:08.6]} 37. Ke3 {[%clk
0:00:29.5]} 37... h4 {[%clk 0:02:07.6]} 38. Bd3 {[%clk 0:00:26.1]} 38... f5
{[%clk 0:02:07.6]} 39. Bc2 {[%clk 0:00:25.6]} 39... Nf6 {[%clk 0:02:05.3]} 40.
Bb1 {[%clk 0:00:24.8]} 40... Ne8 {[%clk 0:02:05.7]} 41. Bc2 {[%clk 0:00:24.6]}
41... Nd6 {[%clk 0:02:06.2]} 42. Bd1 {[%clk 0:00:24.6]} 42... g5 {[%clk
0:02:01.4]} 43. Bh5 {[%clk 0:00:23.4]} 43... b5 {[%clk 0:02:00]} 44. Be2 {[%clk
0:00:21.5]} 44... bxc4 {[%clk 0:02:00.4]} 45. bxc4 {[%clk 0:00:22.4]} 45... a5
{[%clk 0:02:00.6]} 46. Bf1 {[%clk 0:00:21.7]} 46... g4 {[%clk 0:01:55.7]} 47.
Be2 {[%clk 0:00:18.5]} 47... f4+ {[%clk 0:01:54.9]} 48. Kd3 {[%clk 0:00:17.7]}
48... f3 {[%clk 0:01:54.5]} 49. gxf3 {[%clk 0:00:10.5]} 49... gxh3 {[%clk
0:01:47.5]} 50. Ke3 {[%clk 0:00:11]} 50... h2 {[%clk 0:01:47.1]} 51. f4+ {[%clk
0:00:11.4]} 51... Kf5 {[%clk 0:01:40.9]} 52. Bf3 {[%clk 0:00:11.7]} 52... Nxc4+
{[%clk 0:01:41.4]} 53. Kd3 {[%clk 0:00:11.6]} 53... Kxf4 {[%clk 0:01:39.2]} 54.
Bh1 {[%clk 0:00:10.5]} 54... Nd6 {[%clk 0:01:39.1]} 55. Ke2 {[%clk 0:00:10.4]}
55... c4 {[%clk 0:01:38.4]} 56. Kf2 {[%clk 0:00:10.3]} 56... Ke5 {[%clk
0:01:36.8]} 57. Ke3 {[%clk 0:00:09.6]} 57... Nf5+ {[%clk 0:01:36.8]} 58. Kd2
{[%clk 0:00:09.3]} 58... Kd4 {[%clk 0:01:37.5]} 59. Bg2 {[%clk 0:00:08.9]} 59...
c3+ {[%clk 0:01:37.7]} 60. Kc2 {[%clk 0:00:09.2]} 60... Ne3+ {[%clk 0:01:38.1]}
61. Kb3 {[%clk 0:00:09.1]} 61... Nxg2 {[%clk 0:01:39]} 62. d6 {[%clk 0:00:09.3]}
62... h1=Q {[%clk 0:01:39.9]} 63. d7 {[%clk 0:00:09.4]} 63... Qb1+ {[%clk
0:01:40.5]} 64. Ka4 {[%clk 0:00:10]} 64... Kc4 {[%clk 0:01:41]} 65. d8=Q {[%clk
0:00:07.6]} 65... Qb5# {[%clk 0:01:41.9]} 0-1

[Event "*** Titled Tuesday Blitz"]
[Site "Chess.com"]
[Date "2020.04.28"]
[Round "4"]
[White "Anna_ChessMate"]
[Black "Shield12"]
[Result "0-1"]
[WhiteElo "2536"]
[BlackElo "2849"]
[TimeControl "180+1"]
[EndTime "10:40:13 PDT"]
[Termination "Shield12 won by resignation"]

1. d4 {[%clk 0:03:00.9]} 1... Nf6 {[%clk 0:02:59.8]} 2. c4 {[%clk 0:03:01.2]}
2... e6 {[%clk 0:03:00.2]} 3. Nf3 {[%clk 0:03:01.4]} 3... b6 {[%clk 0:03:00.2]}
4. g3 {[%clk 0:03:01.6]} 4... Bb7 {[%clk 0:03:00.4]} 5. Bg2 {[%clk 0:03:00.4]}
5... Be7 {[%clk 0:03:00.8]} 6. O-O {[%clk 0:03:00.7]} 6... O-O {[%clk 0:03:01]}
7. d5 {[%clk 0:03:01.2]} 7... exd5 {[%clk 0:03:00.9]} 8. Nh4 {[%clk 0:03:00.4]}
8... c6 {[%clk 0:03:01.3]} 9. cxd5 {[%clk 0:03:00.7]} 9... Nxd5 {[%clk
0:03:02.2]} 10. Nf5 {[%clk 0:03:01.1]} 10... Nc7 {[%clk 0:03:01.6]} 11. e4
{[%clk 0:03:01.3]} 11... d5 {[%clk 0:03:00.6]} 12. Nc3 {[%clk 0:03:01.6]} 12...
Bf6 {[%clk 0:03:00.4]} 13. Bf4 {[%clk 0:02:58.8]} 13... Bc8 {[%clk 0:02:59.7]}
14. Nd6 {[%clk 0:02:54.5]} 14... g5 {[%clk 0:02:58.3]} 15. Nxc8 {[%clk 0:02:42]}
15... gxf4 {[%clk 0:02:55.9]} 16. Bh3 {[%clk 0:02:21.8]} 16... d4 {[%clk
0:02:38.1]} 17. Qg4+ {[%clk 0:02:15]} 17... Bg7 {[%clk 0:02:27.2]} 18. Ne2
{[%clk 0:02:14.4]} 18... Ne6 {[%clk 0:02:23.5]} 19. gxf4 {[%clk 0:02:05.5]}
19... Qxc8 {[%clk 0:02:18.8]} 20. f5 {[%clk 0:02:06]} 20... Nc5 {[%clk
0:02:14.5]} 21. Kh1 {[%clk 0:02:06.3]} 21... Kh8 {[%clk 0:02:12.8]} 22. Rg1
{[%clk 0:02:06.2]} 22... Bf6 {[%clk 0:02:00.1]} 23. Ng3 {[%clk 0:01:57.4]} 23...
Nbd7 {[%clk 0:01:56.1]} 24. Nh5 {[%clk 0:01:56.3]} 24... Qd8 {[%clk 0:01:50.2]}
25. f3 {[%clk 0:01:37.4]} 25... Nd3 {[%clk 0:01:40.4]} 26. Qg2 {[%clk
0:01:22.5]} 26... Qe7 {[%clk 0:01:17.4]} 27. Qd2 {[%clk 0:01:15.1]} 27... N3e5
{[%clk 0:01:10.3]} 28. Rg3 {[%clk 0:01:05.7]} 28... Rg8 {[%clk 0:01:07]} 29. f4
{[%clk 0:01:01.1]} 29... Nc4 {[%clk 0:01:04.3]} 30. Qd3 {[%clk 0:00:47.9]} 30...
Ne3 {[%clk 0:01:00.6]} 31. e5 {[%clk 0:00:46.9]} 31... Nxe5 {[%clk 0:00:57.6]}
32. fxe5 {[%clk 0:00:47.1]} 32... Bxe5 {[%clk 0:00:58]} 33. Rxg8+ {[%clk
0:00:38.4]} 33... Rxg8 {[%clk 0:00:58.4]} 34. Qe4 {[%clk 0:00:28.2]} 34... f6
{[%clk 0:00:51.3]} 35. Nf4 {[%clk 0:00:22.2]} 35... Qg7 {[%clk 0:00:43.3]} 36.
Ne6 {[%clk 0:00:16.3]} 36... Qh6 {[%clk 0:00:43.3]} 37. Qf3 {[%clk 0:00:13.1]}
37... Ng4 {[%clk 0:00:37.6]} 38. Bxg4 {[%clk 0:00:12]} 0-1